[Event "11th LCC FIDE Open 2019"]
[Site "London"]
[Date "2019.12.03"]
[Round "6.8"]
[White "Czerw, Dawid"]
[Black "Flear, Glenn C"]
[Result "0-1"]
[ECO "E04"]
[WhiteElo "2255"]
[BlackElo "2463"]
[Annotator "RC"]
[PlyCount "100"]
[EventDate "2019.11.29"]
[EventType "swiss"]
[EventCountry "ENG"]
[SourceTitle "playchess.com"]
[Source "ChessBase"]
[SourceQuality "1"]
[TimeControl "40/5400+30:1800+30"]

1. d4 {[%emt 0:00:00]} Nf6 {[%emt 0:00:00]} 2. c4 {[%emt 0:00:00]} e6 {[%emt 0:00:01]} 3. Nf3 {[%emt 0:00:00]} d5 {[%emt 0:00:31]} 4. g3 {[%emt 0:00:00]} dxc4 {[%emt 0:13:02]} 5. Bg2 {[%emt 0:00:32]} Bd7 {[%emt 0:00:20]} 6. Ne5 {[%emt 0:02:42]} Bc6 {[%emt 0:01:45]} 7. Nxc6 {[%emt 0:03:11]} Nxc6 {[%emt 0:00:06]} 8. Bxc6+ {[%emt 0:08:15]} bxc6 {[%emt 0:00:24]} 9. O-O {[%emt 0:00:56]} c5 {[%emt 0:04:34]} 10. Qa4+ {[%emt 0:26:26]} Qd7 {[%emt 0:00:50]} 11. Qxc4 {[%emt 0:01:52]} cxd4 {[%emt 0:03:57]} 12. Rd1 {[%emt 0:06:13]} c5 {[%emt 0:01:37]} 13. e3 {[%emt 0:01:21]} Rc8 {[%emt 0:02:38]} 14. Na3 {[%emt 0:02:24]} e5 {[%emt 0:04:58]} 15. exd4 {[%emt 0:06:28]} cxd4 {[%emt 0:04:04]} 16. Qe2 {[%emt 0:00:10]} Bxa3 {[%emt 0:03:45]} 17. bxa3 {[%emt 0:00:36]} Qd5 {[%emt 0:02:15]} 18. Bb2 {[%emt 0:18:04]} O-O {[%emt 0:00:49]} 19. f4 {[%emt 0:00:06]} Nd7 {[%emt 0:12:19]} 20. fxe5 {[%emt 0:01:32]} Nxe5 {[%emt 0:00:06]} 21. Rf1 {[%emt 0:01:19]} f6 {[%emt 0:01:15]} 22. Rad1 {[%emt 0:04:48]} Rc4 {[%emt 0:03:12]} 23. Rf4 {[%emt 0:03:43]} d3 {[%emt 0:06:47]} 24. Qg2 {[%emt 0:00:33]} Qxg2+ {[%emt 0:02:55]} 25. Kxg2 {[%emt 0:00:03]} Rc2+ {[%emt 0:00:26]} 26. Rf2 {[%emt 0:00:03]} Ng4 {[%emt 0:00:45]} 27. Rxc2 {[%emt 0:00:31]} dxc2 {[%emt 0:00:22]} 28. Rd4 {[%emt 0:07:19]} Rb8 {[%emt 0:02:09]} 29. Bc1 {[%emt 0:00:21]} Ne5 {[%emt 0:00:26]} 30. Rd2 {[%emt 0:00:26]} Rc8 {[%emt 0:00:43]} 31. Kf2 {[%emt 0:00:29]} Kf7 {[%emt 0:04:23]} 32. Ke2 {[%emt 0:00:32]} Ke6 {[%emt 0:00:44]} 33. Rd4 {[%emt 0:00:24]} h5 {[%emt 0:03:47]} 34. Ra4 {[%emt 0:01:48]} Rd8 {[%emt 0:01:06]} 35. Rxa7 {[%emt 0:00:51]} Rd1 {[%emt 0:01:39]} 36. Rxg7 {[%emt 0:00:52]} Rxc1 {[%emt 0:02:56]} 37. Kd2 {[%emt 0:00:02]} Ra1 {[%emt 0:03:41]} 38. Kxc2 {[%emt 0:00:02]} Rxa2+ {[%emt 0:00:06]} 39. Kb3 {[%emt 0:00:06]} Rxh2 {[%emt 0:00:03]} 40. a4 {[%emt 0:00:06]} Rg2 {[%emt 0:02:52]} 41. a5 {[%emt 0:30:25]} h4 {[%emt 0:31:08]} 42. a6 {[%emt 0:00:54]} Rxg3+ {[%emt 0:03:03]} 43. Rxg3 {[%emt 0:00:32]} hxg3 {[%emt 0:00:04]} 44. a7 {[%emt 0:00:06]} g2 {[%emt 0:00:06]} 45. a8=Q {[%emt 0:00:09]} g1=Q {[%emt 0:00:07]} 46. Qc8+ {[%emt 0:03:21]} Kf7 {[%emt 0:01:09]} 47. Qc7+ {[%emt 0:00:23]} Kg6 {[%emt 0:00:14]} 48. Qc2+ {[%emt 0:00:06]} Kg5 {[%emt 0:02:14]} 49. Qd2+ {[%emt 0:00:06]} Kf5 {[%emt 0:00:34]} 50. Qc2+ {[%emt 0:00:05]} Kf4 {[%emt 0:00:19]} 0-1

[Event "11th LCC FIDE Open 2019"]
[Site "London"]
[Date "2019.12.03"]
[Round "6.21"]
[White "Sedykh, Mikhail"]
[Black "Cox, John J"]
[Result "1/2-1/2"]
[ECO "A67"]
[WhiteElo "2134"]
[BlackElo "2306"]
[Annotator "RC"]
[PlyCount "86"]
[EventDate "2019.11.29"]
[EventType "swiss"]
[EventCountry "ENG"]
[SourceTitle "playchess.com"]
[Source "ChessBase"]
[SourceQuality "1"]
[TimeControl "40/5400+30:1800+30"]

1. d4 {[%emt 0:00:00]} Nf6 {[%emt 0:30:20]} 2. c4 {[%emt 0:00:00]} c5 {[%emt 0:00:08]} 3. d5 {[%emt 0:00:00]} e6 {[%emt 0:00:04]} 4. Nc3 {[%emt 0:00:00]} exd5 {[%emt 0:00:05]} 5. cxd5 {[%emt 0:00:00]} d6 {[%emt 0:00:07]} 6. e4 {[%emt 0:00:00]} g6 {[%emt 0:00:08]} 7. f4 {[%emt 0:01:30]} Bg7 {[%emt 0:00:08]} 8. Bb5+ {[%emt 0:00:10]} Nfd7 {[%emt 0:00:06]} 9. a4 {[%emt 0:00:09]} Qh4+ {[%emt 0:00:11]} 10. g3 {[%emt 0:00:14]} Qd8 {[%emt 0:00:06]} 11. Nf3 {[%emt 0:01:10]} O-O {[%emt 0:00:31]} 12. O-O {[%emt 0:01:01]} a6 {[%emt 0:00:05]} 13. Bc4 {[%emt 0:08:59]} Nb6 {[%emt 0:00:56]} 14. Be2 {[%emt 0:11:04]} Bg4 {[%emt 0:01:01]} 15. a5 {[%emt 0:08:07]} Nc8 {[%emt 0:00:25]} 16. Be3 {[%emt 0:04:41]} Nd7 {[%emt 0:01:17]} 17. Ng5 {[%emt 0:15:49]} Bxe2 {[%emt 0:04:30]} 18. Qxe2 {[%emt 0:00:01]} h6 {[%emt 0:09:36]} 19. Nf3 {[%emt 0:04:35]} f5 {[%emt 0:03:32]} 20. e5 {[%emt 0:07:48]} dxe5 {[%emt 0:03:09]} 21. fxe5 {[%emt 0:00:03]} Nxe5 {[%emt 0:00:19]} 22. Nxe5 {[%emt 0:08:53]} Bxe5 {[%emt 0:00:08]} 23. Bxc5 {[%emt 0:00:40]} Re8 {[%emt 0:00:54]} 24. Qd2 {[%emt 0:00:39]} Qg5 {[%emt 0:18:53]} 25. Qxg5 {[%emt 0:06:35]} hxg5 {[%emt 0:00:03]} 26. Rae1 {[%emt 0:00:31]} Na7 {[%emt 0:13:46]} 27. Rf2 {[%emt 0:08:00]} Bxc3 {[%emt 0:03:09]} 28. Rxe8+ {[%emt 0:00:03]} Rxe8 {[%emt 0:00:03]} 29. bxc3 {[%emt 0:00:19]} Nb5 {[%emt 0:00:49]} 30. c4 {[%emt 0:00:56]} Nc3 {[%emt 0:00:54]} 31. Rc2 {[%emt 0:06:33]} Ne4 {[%emt 0:00:06]} 32. Bb6 {[%emt 0:01:03]} Nf6 {[%emt 0:04:05]} 33. Bd4 {[%emt 0:01:26]} Kf7 {[%emt 0:00:33]} 34. Rb2 {[%emt 0:01:46]} Re7 {[%emt 0:00:08]} 35. Bxf6 {[%emt 0:02:24]} Kxf6 {[%emt 0:00:05]} 36. Rb6+ {[%emt 0:00:03]} Ke5 {[%emt 0:01:30]} 37. Rxg6 {[%emt 0:00:11]} g4 {[%emt 0:01:01]} 38. Kf2 {[%emt 0:01:18]} Rc7 {[%emt 0:03:36]} 39. Re6+ {[%emt 0:00:55]} Kd4 {[%emt 0:00:02]} 40. d6 {[%emt 0:01:16]} Rd7 {[%emt 0:00:37]} 41. Re7 {[%emt 0:07:47]} Rxd6 {[%emt 0:00:18]} 42. Rxb7 {[%emt 0:00:03]} Kxc4 {[%emt 0:11:43]} 43. Rb6 {[%emt 0:00:04]} Rd2+ {[%emt 0:15:50]} 1/2-1/2

[Event "11th LCC FIDE Open 2019"]
[Site "London"]
[Date "2019.12.03"]
[Round "6.22"]
[White "Risting, Eivind Olav"]
[Black "Bucher, Grant W"]
[Result "1-0"]
[ECO "A40"]
[WhiteElo "2298"]
[BlackElo "2121"]
[Annotator "ChessBase"]
[PlyCount "63"]
[EventDate "2019.11.29"]
[EventType "swiss"]
[EventCountry "ENG"]
[SourceTitle "playchess.com"]
[Source "ChessBase"]
[SourceQuality "1"]
[TimeControl "40/5400+30:1800+30"]

1. c4 {[%emt 0:00:00]} b6 {[%emt 0:00:00]} 2. d4 {[%emt 0:00:29]} Bb7 {[%emt 0:00:01]} 3. Nc3 {[%emt 0:00:29]} f5 {[%emt 0:00:53]} 4. f3 {[%emt 0:06:23]} Nf6 {[%emt 0:02:13]} 5. Bg5 {[%emt 0:03:30]} e6 {[%emt 0:13:42]} 6. e3 {[%emt 0:05:20]} Bb4 {[%emt 0:09:22]} 7. Qc2 {[%emt 0:04:14]} O-O {[%emt 0:02:01]} 8. Bd3 {[%emt 0:01:42]} c5 {[%emt 0:10:28]} 9. a3 {[%emt 0:03:03]} Bxc3+ {[%emt 0:01:29]} 10. Qxc3 {[%emt 0:01:57]} d6 {[%emt 0:11:44]} 11. Ne2 {[%emt 0:03:48]} h6 {[%emt 0:01:29]} 12. Bh4 {[%emt 0:03:28]} Qd7 {[%emt 0:03:34]} 13. O-O {[%emt 0:06:53]} Na6 {[%emt 0:01:14]} 14. b4 {[%emt 0:01:56]} Rae8 {[%emt 0:04:20]} 15. Rad1 {[%emt 0:04:43]} Qc8 {[%emt 0:10:05]} 16. Bg3 {[%emt 0:06:32]} e5 {[%emt 0:06:55]} 17. dxe5 {[%emt 0:09:16]} dxe5 {[%emt 0:00:07]} 18. b5 {[%emt 0:10:22]} Nb8 {[%emt 0:00:54]} 19. Bxe5 {[%emt 0:00:16]} Qe6 {[%emt 0:00:38]} 20. Bg3 {[%emt 0:05:28]} Qxe3+ {[%emt 0:01:31]} 21. Bf2 {[%emt 0:00:13]} Qe5 {[%emt 0:04:56]} 22. Qc2 {[%emt 0:01:47]} Nh5 {[%emt 0:01:49]} 23. Rfe1 {[%emt 0:03:48]} Qf6 {[%emt 0:01:24]} 24. Ng3 {[%emt 0:01:52]} Nxg3 {[%emt 0:00:31]} 25. Bxg3 {[%emt 0:03:43]} Rxe1+ {[%emt 0:03:18]} 26. Bxe1 {[%emt 0:00:34]} Nd7 {[%emt 0:03:13]} 27. Bxf5 {[%emt 0:04:26]} Ne5 {[%emt 0:00:31]} 28. Be4 {[%emt 0:00:41]} Bxe4 {[%emt 0:02:37]} 29. Qxe4 {[%emt 0:00:04]} Qf4 {[%emt 0:00:23]} 30. Qxf4 {[%emt 0:00:34]} Rxf4 {[%emt 0:00:06]} 31. Bg3 {[%emt 0:00:07]} Rf5 {[%emt 0:00:21]} 32. Rd5 {[%emt 0:00:13]} 1-0

[Event "11th LCC FIDE Open 2019"]
[Site "London"]
[Date "2019.12.03"]
[Round "6.23"]
[White "Balaji, Aaravamudhan"]
[Black "Wu, Li"]
[Result "0-1"]
[ECO "E91"]
[WhiteElo "2080"]
[BlackElo "2293"]
[Annotator "ChessBase"]
[PlyCount "78"]
[EventDate "2019.11.29"]
[EventType "swiss"]
[EventCountry "ENG"]
[SourceTitle "playchess.com"]
[Source "ChessBase"]
[SourceQuality "1"]
[TimeControl "40/5400+30:1800+30"]

1. d4 {[%emt 0:00:00]} Nf6 {[%emt 0:00:00]} 2. c4 {[%emt 0:00:00]} c5 {[%emt 0:00:00]} 3. d5 {[%emt 0:00:00]} g6 {[%emt 0:00:00]} 4. Nc3 {[%emt 0:00:00]} Bg7 {[%emt 0:00:02]} 5. e4 {[%emt 0:00:04]} d6 {[%emt 0:00:07]} 6. Be2 {[%emt 0:00:13]} O-O {[%emt 0:00:07]} 7. Nf3 {[%emt 0:00:17]} Na6 {[%emt 0:02:08]} 8. O-O {[%emt 0:00:07]} e5 {[%emt 0:01:42]} 9. Ne1 {[%emt 0:04:35]} Nd7 {[%emt 0:06:10]} 10. a3 {[%emt 0:00:33]} f5 {[%emt 0:04:43]} 11. Nd3 {[%emt 0:00:54]} Nf6 {[%emt 0:01:08]} 12. f3 {[%emt 0:00:53]} f4 {[%emt 0:04:32]} 13. Rb1 {[%emt 0:03:06]} g5 {[%emt 0:09:18]} 14. b4 {[%emt 0:06:40]} Nd7 {[%emt 0:03:51]} 15. Bd2 {[%emt 0:17:48]} Rf6 {[%emt 0:03:08]} 16. g4 {[%emt 0:02:21]} h5 {[%emt 0:25:54]} 17. h3 {[%emt 0:01:59]} Rh6 {[%emt 0:00:06]} 18. Kg2 {[%emt 0:01:13]} Bf8 {[%emt 0:00:48]} 19. Rh1 {[%emt 0:03:13]} Nf6 {[%emt 0:04:56]} 20. Na4 {[%emt 0:09:35]} Qe8 {[%emt 0:02:56]} 21. Qb3 {[%emt 0:15:41]} b6 {[%emt 0:07:55]} 22. b5 {[%emt 0:05:23]} Nb8 {[%emt 0:02:40]} 23. Nc3 {[%emt 0:01:45]} Be7 {[%emt 0:00:31]} 24. a4 {[%emt 0:00:36]} Bd8 {[%emt 0:01:45]} 25. Ra1 {[%emt 0:04:49]} Nbd7 {[%emt 0:01:13]} 26. Qd1 {[%emt 0:04:18]} Qg6 {[%emt 0:02:55]} 27. Nc1 {[%emt 0:03:15]} a5 {[%emt 0:03:12]} 28. bxa6 {[%emt 0:00:42]} Rxa6 {[%emt 0:00:04]} 29. Nb5 {[%emt 0:01:23]} Ne8 {[%emt 0:03:17]} 30. Nb3 {[%emt 0:02:09]} Ndf6 {[%emt 0:00:06]} 31. Bd3 {[%emt 0:00:43]} Qh7 {[%emt 0:01:05]} 32. Be2 {[%emt 0:06:03]} Ra8 {[%emt 0:04:00]} 33. a5 {[%emt 0:02:13]} bxa5 {[%emt 0:00:06]} 34. Bxa5 {[%emt 0:00:47]} hxg4 {[%emt 0:02:52]} 35. hxg4 {[%emt 0:00:32]} Nxg4 {[%emt 0:01:39]} 36. fxg4 {[%emt 0:00:44]} Rxh1 {[%emt 0:00:16]} 37. Qxh1 {[%emt 0:00:02]} Qxe4+ {[%emt 0:00:02]} 38. Kh3 {[%emt 0:03:39]} Qxe2 {[%emt 0:00:28]} 39. Bxd8 {[%emt 0:00:24]} Bxg4# {[%emt 0:00:06]} 0-1

[Event "11th LCC FIDE Open 2019"]
[Site "London"]
[Date "2019.12.03"]
[Round "6.24"]
[White "Van Zyl-Rudd, Jack"]
[Black "Tanmay, Chopra"]
[Result "1-0"]
[ECO "E32"]
[WhiteElo "2290"]
[BlackElo "2082"]
[Annotator "NA"]
[PlyCount "47"]
[EventDate "2019.11.29"]
[EventType "swiss"]
[EventCountry "ENG"]
[SourceTitle "playchess.com"]
[Source "ChessBase"]
[SourceQuality "1"]
[TimeControl "40/5400+30:1800+30"]

1. d4 {[%emt 0:02:00]} Nf6 {[%emt 0:09:26]} 2. c4 {[%emt 0:00:57]} e6 {[%emt 0:00:09]} 3. Nc3 {[%emt 0:01:38]} Bb4 {[%emt 0:00:05]} 4. Qc2 {[%emt 0:01:02]} O-O {[%emt 0:00:08]} 5. e4 {[%emt 0:00:56]} d5 6. e5 {[%emt 0:00:00]} Ne4 {[%emt 0:00:46]} 7. Bd3 {[%emt 0:00:21]} c5 {[%emt 0:00:57]} 8. Nf3 {[%emt 0:00:25]} cxd4 {[%emt 0:02:07]} 9. Nxd4 {[%emt 0:00:09]} Nd7 {[%emt 0:00:23]} 10. Bf4 {[%emt 0:00:31]} Ndc5 {[%emt 0:02:02]} 11. O-O {[%emt 0:00:43]} Bxc3 {[%emt 0:00:51]} 12. bxc3 {[%emt 0:00:08]} Bd7 {[%emt 0:06:46]} 13. Be2 {[%emt 0:00:36]} Na4 {[%emt 0:03:40]} 14. cxd5 {[%emt 0:00:06]} exd5 {[%emt 0:00:12]} 15. f3 {[%emt 0:00:20]} Nexc3 {[%emt 0:07:45]} 16. Bd3 {[%emt 0:00:28]} Kh8 {[%emt 0:04:45]} 17. Qd2 {[%emt 0:41:02]} Qb6 {[%emt 0:06:51]} 18. Be3 {[%emt 0:02:19]} Qc7 {[%emt 0:01:38]} 19. f4 {[%emt 0:09:27]} b5 {[%emt 0:05:05]} 20. f5 {[%emt 0:03:57]} Qxe5 {[%emt 0:05:45]} 21. Nf3 {[%emt 0:01:34]} Qc7 {[%emt 0:10:48]} 22. f6 {[%emt 0:00:34]} g6 {[%emt 0:00:48]} 23. Bd4 {[%emt 0:03:17]} Rg8 {[%emt 0:07:04]} 24. Qh6 {[%emt 0:01:15]} 1-0

[Event "11th LCC FIDE Open 2019"]
[Site "London"]
[Date "2019.12.03"]
[Round "6.25"]
[White "Pollack, Oscar"]
[Black "Cumming, Rhys"]
[Result "0-1"]
[ECO "C78"]
[WhiteElo "2112"]
[BlackElo "2284"]
[Annotator "ChessBase"]
[PlyCount "58"]
[EventDate "2019.11.29"]
[EventType "swiss"]
[EventCountry "ENG"]
[SourceTitle "playchess.com"]
[Source "ChessBase"]
[SourceQuality "1"]
[TimeControl "40/5400+30:1800+30"]

1. e4 {[%emt 0:00:00]} e5 {[%emt 0:00:00]} 2. Nf3 {[%emt 0:00:00]} Nc6 {[%emt 0:00:00]} 3. Bb5 {[%emt 0:00:00]} a6 {[%emt 0:00:09]} 4. Ba4 {[%emt 0:00:00]} Nf6 {[%emt 0:00:23]} 5. O-O {[%emt 0:00:00]} Bc5 {[%emt 0:00:19]} 6. c3 {[%emt 0:01:42]} b5 {[%emt 0:00:09]} 7. Bb3 {[%emt 0:02:10]} d6 {[%emt 0:00:44]} 8. h3 {[%emt 0:01:16]} O-O {[%emt 0:03:21]} 9. d4 {[%emt 0:00:46]} Bb6 {[%emt 0:01:26]} 10. a4 {[%emt 0:00:16]} Bb7 {[%emt 0:03:55]} 11. d5 {[%emt 0:10:48]} Ne7 {[%emt 0:02:50]} 12. Re1 {[%emt 0:02:29]} h6 {[%emt 0:11:08]} 13. Nbd2 {[%emt 0:10:22]} c6 {[%emt 0:05:12]} 14. dxc6 {[%emt 0:00:31]} Bxc6 {[%emt 0:00:31]} 15. Bc2 {[%emt 0:00:37]} Qc7 {[%emt 0:14:49]} 16. Nf1 {[%emt 0:03:56]} Rae8 {[%emt 0:14:59]} 17. Ng3 {[%emt 0:11:25]} d5 {[%emt 0:00:39]} 18. a5 {[%emt 0:06:40]} Ba7 {[%emt 0:02:17]} 19. exd5 {[%emt 0:01:16]} Bxd5 {[%emt 0:00:12]} 20. Be3 {[%emt 0:05:55]} Bxe3 {[%emt 0:06:23]} 21. Rxe3 {[%emt 0:00:06]} Bb7 {[%emt 0:00:29]} 22. Qe1 {[%emt 0:14:25]} Ned5 {[%emt 0:01:55]} 23. Rxe5 {[%emt 0:06:32]} Nf4 24. Qe3 {[%emt 0:03:14]} Nxg2 {[%emt 0:04:53]} 25. Rxe8 {[%emt 0:00:42]} Nxe3 {[%emt 0:00:00]} 26. Rxe3 {[%emt 0:01:25]} Nd5 {[%emt 0:02:54]} 27. Re4 {[%emt 0:02:33]} Nxc3 {[%emt 0:04:01]} 28. Re3 {[%emt 0:00:23]} Nd5 {[%emt 0:01:19]} 29. Rc1 {[%emt 0:05:06]} Qxa5 {[%emt 0:02:33]} 0-1

[Event "11th LCC FIDE Open 2019"]
[Site "London"]
[Date "2019.12.03"]
[Round "6.26"]
[White "Rogacewicz, Mikolaj"]
[Black "Blackburn, Jonathan Lb"]
[Result "0-1"]
[ECO "E81"]
[WhiteElo "1921"]
[BlackElo "2240"]
[Annotator "ChessBase"]
[PlyCount "72"]
[EventDate "2019.11.29"]
[EventType "swiss"]
[EventCountry "ENG"]
[SourceTitle "playchess.com"]
[Source "ChessBase"]
[SourceQuality "1"]
[TimeControl "40/5400+30:1800+30"]

1. d4 {[%emt 0:00:00]} Nf6 {[%emt 0:00:00]} 2. c4 {[%emt 0:00:00]} d6 {[%emt 0:00:27]} 3. Nc3 {[%emt 0:00:25]} g6 {[%emt 0:00:08]} 4. e4 {[%emt 0:00:09]} Bg7 {[%emt 0:00:05]} 5. f3 {[%emt 0:00:07]} O-O {[%emt 0:00:44]} 6. Be3 {[%emt 0:00:14]} a6 {[%emt 0:01:24]} 7. Bd3 {[%emt 0:01:55]} c5 {[%emt 0:09:53]} 8. Nge2 {[%emt 0:07:31]} Nc6 {[%emt 0:01:47]} 9. dxc5 {[%emt 0:09:56]} dxc5 {[%emt 0:01:15]} 10. Bxc5 {[%emt 0:39:40]} Nd7 {[%emt 0:07:47]} 11. Ba3 {[%emt 0:03:38]} Nde5 {[%emt 0:01:25]} 12. Nc1 {[%emt 0:02:57]} Be6 {[%emt 0:08:34]} 13. Nd5 {[%emt 0:09:48]} b5 {[%emt 0:03:42]} 14. Qe2 {[%emt 0:00:59]} Bxd5 {[%emt 0:24:57]} 15. cxd5 {[%emt 0:01:53]} b4 {[%emt 0:02:04]} 16. Bxb4 {[%emt 0:14:58]} Nxb4 {[%emt 0:00:07]} 17. Bb1 {[%emt 0:00:31]} Rc8 {[%emt 0:01:17]} 18. O-O {[%emt 0:00:49]} Qc7 {[%emt 0:02:36]} 19. Nb3 {[%emt 0:00:56]} Nc2 {[%emt 0:01:04]} 20. Bxc2 {[%emt 0:00:09]} Qxc2 {[%emt 0:00:06]} 21. Qxa6 {[%emt 0:00:20]} Qxb2 {[%emt 0:00:36]} 22. Rf2 {[%emt 0:01:25]} Rc2 {[%emt 0:02:42]} 23. Rxc2 {[%emt 0:00:20]} Qxc2 {[%emt 0:00:04]} 24. Rc1 {[%emt 0:00:09]} Qb2 {[%emt 0:00:50]} 25. h3 {[%emt 0:01:33]} Bh6 {[%emt 0:01:30]} 26. Re1 {[%emt 0:00:26]} Bf4 {[%emt 0:00:40]} 27. Qe2 {[%emt 0:01:04]} Qc3 {[%emt 0:00:57]} 28. Rd1 {[%emt 0:00:29]} Ra8 {[%emt 0:01:24]} 29. Kf2 {[%emt 0:00:28]} h5 {[%emt 0:01:13]} 30. g3 {[%emt 0:00:18]} Rxa2 {[%emt 0:00:32]} 31. Qxa2 {[%emt 0:00:07]} Qxf3+ {[%emt 0:00:04]} 32. Kg1 {[%emt 0:00:19]} Qxd1+ {[%emt 0:00:12]} 33. Kh2 {[%emt 0:00:09]} Be3 {[%emt 0:00:28]} 34. Qa1 {[%emt 0:00:40]} Nf3+ {[%emt 0:00:14]} 35. Kg2 {[%emt 0:00:05]} Qe2+ {[%emt 0:00:03]} 36. Kh1 {[%emt 0:00:14]} Qh2# {[%emt 0:00:06]} 0-1

[Event "11th LCC FIDE Open 2019"]
[Site "London"]
[Date "2019.12.03"]
[Round "6.27"]
[White "McClement, Andrew"]
[Black "Eche, Sylvain"]
[Result "0-1"]
[ECO "B90"]
[WhiteElo "2226"]
[BlackElo "2054"]
[Annotator "ChessBase"]
[PlyCount "118"]
[EventDate "2019.11.29"]
[EventType "swiss"]
[EventCountry "ENG"]
[SourceTitle "playchess.com"]
[Source "ChessBase"]
[SourceQuality "1"]
[TimeControl "40/5400+30:1800+30"]

1. e4 {[%emt 0:03:13]} c5 {[%emt 0:00:00]} 2. Nf3 {[%emt 0:00:08]} d6 {[%emt 0:00:00]} 3. d4 {[%emt 0:00:05]} cxd4 {[%emt 0:00:08]} 4. Nxd4 {[%emt 0:00:03]} Nf6 {[%emt 0:00:05]} 5. Nc3 {[%emt 0:00:03]} a6 {[%emt 0:00:05]} 6. Be3 {[%emt 0:00:06]} e5 {[%emt 0:00:19]} 7. Nb3 {[%emt 0:00:05]} Be7 {[%emt 0:00:53]} 8. f3 {[%emt 0:00:06]} Be6 {[%emt 0:00:36]} 9. Qd2 {[%emt 0:00:06]} O-O {[%emt 0:00:31]} 10. O-O-O {[%emt 0:00:01]} a5 {[%emt 0:00:30]} 11. Bb5 {[%emt 0:01:35]} Na6 {[%emt 0:01:13]} 12. Kb1 {[%emt 0:11:20]} Nc7 {[%emt 0:01:13]} 13. Bb6 {[%emt 0:01:15]} Qb8 {[%emt 0:01:13]} 14. Nxa5 {[%emt 0:07:35]} d5 {[%emt 0:12:27]} 15. Bxc7 {[%emt 0:09:34]} Qxc7 {[%emt 0:00:19]} 16. exd5 {[%emt 0:00:02]} Rfd8 {[%emt 0:04:44]} 17. Nc4 {[%emt 0:29:32]} Nxd5 {[%emt 0:05:46]} 18. Nxd5 {[%emt 0:00:16]} Rxd5 {[%emt 0:00:34]} 19. Qxd5 {[%emt 0:00:06]} Bxd5 {[%emt 0:00:06]} 20. Rxd5 {[%emt 0:00:05]} Bf6 {[%emt 0:18:30]} 21. a4 {[%emt 0:01:57]} Rd8 {[%emt 0:05:09]} 22. Rhd1 {[%emt 0:01:49]} Rxd5 {[%emt 0:01:50]} 23. Rxd5 {[%emt 0:00:01]} e4 {[%emt 0:02:03]} 24. fxe4 {[%emt 0:01:53]} Qxh2 {[%emt 0:00:42]} 25. Rd2 {[%emt 0:00:24]} h5 {[%emt 0:01:55]} 26. Re2 {[%emt 0:05:23]} h4 {[%emt 0:06:14]} 27. Bd7 {[%emt 0:14:32]} b5 {[%emt 0:11:19]} 28. Bxb5 {[%emt 0:06:04]} h3 {[%emt 0:00:20]} 29. Nd2 {[%emt 0:02:14]} Qg1+ {[%emt 0:03:27]} 30. Ka2 {[%emt 0:00:12]} h2 {[%emt 0:00:38]} 31. Nf3 {[%emt 0:00:11]} Qc1 {[%emt 0:00:07]} 32. e5 {[%emt 0:00:18]} Bxe5 {[%emt 0:04:32]} 33. Nxe5 {[%emt 0:01:13]} h1=Q {[%emt 0:00:18]} 34. Bc4 {[%emt 0:00:31]} Qa1+ {[%emt 0:03:03]} 35. Kb3 {[%emt 0:00:02]} Qhb1 {[%emt 0:00:26]} 36. c3 {[%emt 0:05:20]} Qba2+ {[%emt 0:02:03]} 37. Kb4 {[%emt 0:00:01]} Qxa4+ {[%emt 0:00:32]} 38. Kc5 {[%emt 0:00:01]} Qa7+ {[%emt 0:02:13]} 39. Kd5 {[%emt 0:00:22]} Qd1+ {[%emt 0:04:07]} 40. Ke4 {[%emt 0:00:19]} Qe7 {[%emt 0:01:18]} 41. Bxf7+ {[%emt 0:30:26]} Qxf7 {[%emt 0:30:11]} 42. Nxf7 {[%emt 0:00:07]} Qxe2+ {[%emt 0:00:02]} 43. Kd4 {[%emt 0:00:07]} Kxf7 {[%emt 0:00:22]} 44. b4 {[%emt 0:00:02]} Qb5 {[%emt 0:00:34]} 45. g3 {[%emt 0:00:13]} Ke6 {[%emt 0:00:10]} 46. g4 {[%emt 0:00:13]} Qd5+ {[%emt 0:00:14]} 47. Ke3 {[%emt 0:00:02]} Qc4 {[%emt 0:00:13]} 48. Kd2 {[%emt 0:00:01]} Ke5 {[%emt 0:00:13]} 49. Kc2 {[%emt 0:00:03]} Kf4 {[%emt 0:00:09]} 50. Kd2 {[%emt 0:00:03]} Kxg4 {[%emt 0:00:14]} 51. Kc2 {[%emt 0:00:03]} Kf4 {[%emt 0:00:13]} 52. Kd2 {[%emt 0:00:02]} g5 {[%emt 0:00:12]} 53. Kc2 {[%emt 0:00:02]} g4 {[%emt 0:00:04]} 54. Kd2 {[%emt 0:00:02]} g3 {[%emt 0:00:10]} 55. b5 {[%emt 0:00:01]} Qxb5 {[%emt 0:00:17]} 56. c4 {[%emt 0:00:07]} Qxc4 {[%emt 0:00:10]} 57. Ke1 {[%emt 0:00:05]} Qa2 {[%emt 0:00:12]} 58. Kd1 {[%emt 0:00:03]} g2 {[%emt 0:00:14]} 59. Kc1 {[%emt 0:00:05]} g1=Q# {[%emt 0:00:04]} 0-1

[Event "11th LCC FIDE Open 2019"]
[Site "London"]
[Date "2019.12.03"]
[Round "6.28"]
[White "Ahn, Sungmin"]
[Black "Akots, Gabor"]
[Result "1/2-1/2"]
[ECO "C54"]
[WhiteElo "1780"]
[BlackElo "2221"]
[Annotator "ChessBase"]
[PlyCount "54"]
[EventDate "2019.11.29"]
[EventType "swiss"]
[EventCountry "ENG"]
[SourceTitle "playchess.com"]
[Source "ChessBase"]
[SourceQuality "1"]
[TimeControl "40/5400+30:1800+30"]

1. e4 {[%emt 0:00:00]} e5 {[%emt 0:00:00]} 2. Nf3 {[%emt 0:00:00]} Nc6 {[%emt 0:00:00]} 3. Bc4 {[%emt 0:00:00]} Bc5 {[%emt 0:00:04]} 4. c3 {[%emt 0:00:43]} Nf6 {[%emt 0:00:14]} 5. d4 {[%emt 0:01:19]} exd4 {[%emt 0:00:49]} 6. e5 {[%emt 0:00:10]} d5 {[%emt 0:00:37]} 7. Bb5 {[%emt 0:00:23]} Ne4 {[%emt 0:00:40]} 8. cxd4 {[%emt 0:00:05]} Bb6 {[%emt 0:00:10]} 9. Be3 {[%emt 0:00:13]} O-O {[%emt 0:00:18]} 10. Nc3 {[%emt 0:00:06]} Bg4 {[%emt 0:30:38]} 11. h3 {[%emt 0:00:39]} Bh5 {[%emt 0:01:00]} 12. Qc2 {[%emt 0:03:18]} Nxc3 {[%emt 0:11:41]} 13. bxc3 {[%emt 0:00:30]} Bg6 {[%emt 0:09:12]} 14. Bd3 {[%emt 0:05:18]} Bxd3 {[%emt 0:00:42]} 15. Qxd3 {[%emt 0:00:02]} f6 {[%emt 0:00:31]} 16. exf6 {[%emt 0:03:38]} Qxf6 {[%emt 0:01:50]} 17. Ng5 {[%emt 0:22:41]} Qf5 {[%emt 0:07:59]} 18. Kd2 {[%emt 0:03:42]} Na5 {[%emt 0:01:16]} 19. Qxf5 {[%emt 0:04:33]} Nc4+ {[%emt 0:01:28]} 20. Kd3 {[%emt 0:01:54]} Rxf5 {[%emt 0:00:52]} 21. Nf3 {[%emt 0:06:11]} c6 {[%emt 0:02:45]} 22. Rab1 {[%emt 0:04:35]} Re8 {[%emt 0:04:37]} 23. Rhe1 {[%emt 0:02:12]} h6 {[%emt 0:07:41]} 24. Re2 {[%emt 0:02:22]} Rf7 {[%emt 0:04:00]} 25. Rbe1 {[%emt 0:01:18]} Rfe7 {[%emt 0:00:00]} 26. Bf4 {[%emt 0:05:58]} Rxe2 {[%emt 0:01:26]} 27. Rxe2 {[%emt 0:00:24]} Rxe2 {[%emt 0:02:08] Ke4} 1/2-1/2